[Event "Grand Prix Romania 1st Stage 2024"]
[Site "Bucuresti"]
[Date "2024.03.24"]
[Round "6.8"]
[White "Rozen, Eytan"]
[Black "Lupulescu, Constantin"]
[Result "1/2-1/2"]
[ECO "D02"]
[WhiteElo "2487"]
[BlackElo "2579"]
[Annotator "TA"]
[PlyCount "58"]
[EventDate "2024.03.20"]
[EventType "swiss"]
[EventCountry "ROU"]
[SourceTitle "playchess.com"]
[Source "ChessBase"]
[SourceQuality "1"]
[TimeControl "900+5"]

{[%evp 17,58,0,0,0,0,-5,0,-7,0,0,0,14,12,13,7,0,25,24,24,25,13,0,75,63,60,74,72,82,76,25,25,23,40,6,7,5,9,9,21,0,0,0,0]} 1. d4 {[%emt 0:00:07]} Nf6 {[%emt 0:00:15]} 2. Nf3 {[%emt 0:00:14]} d5 {[%emt 0:00:01]} 3. c3 {[%emt 0:00:03]} Bf5 {[%emt 0:00:48]} 4. Bf4 {[%emt 0:00:21]} e6 {[%emt 0:00:41]} 5. e3 {[%emt 0:00:10]} Nbd7 {[%emt 0:00:25]} 6. Bd3 {[%emt 0:00:13]} Bxd3 {[%emt 0:00:16]} 7. Qxd3 {[%emt 0:00:01]} c5 {[%emt 0:00:20]} 8. Nbd2 {[%emt 0:00:16]} Be7 {[%emt 0:00:02]} 9. O-O {[%emt 0:00:10]} O-O {[%emt 0:00:46]} 10. h3 {[%emt 0:00:06]} Qb6 {[%emt 0:00:33]} 11. a4 {[%emt 0:00:05]} a6 {[%emt 0:00:36]} (11... Qxb2 12. Rfb1 c4 13. Rxb2 $18) 12. Rfb1 {[%emt 0:01:25]} Bd6 {[%emt 0:00:47]} 13. b4 {[%emt 0:01:12]} c4 {[%emt 0:02:10]} 14. Qc2 {[%emt 0:00:04]} Qc7 {[%emt 0:00:05]} 15. Bxd6 {[%emt 0:00:03]} Qxd6 {[%emt 0:00:01]} 16. a5 {[%emt 0:00:07]} e5 {[%emt 0:01:29]} 17. dxe5 {[%emt 0:00:14]} Nxe5 {[%emt 0:00:02]} 18. Nxe5 {[%emt 0:00:01]} Qxe5 {[%emt 0:00:01]} 19. b5 {[%emt 0:00:05]} Ne4 {[%emt 0:01:45]} (19... Qc7 $11) 20. Nxe4 {[%emt 0:00:16]} dxe4 {[%emt 0:00:02]} 21. bxa6 {[%emt 0:00:02]} bxa6 {[%emt 0:00:01]} 22. Rb4 {[%emt 0:00:36]} Rfc8 {[%emt 0:01:21]} 23. Raa4 {[%emt 0:02:34]} (23. Rd1 $16) 23... Qd5 $11 {[%emt 0:00:30]} 24. Qe2 {[%emt 0:01:29][%cal Rb4c4]} Qd3 {[%emt 0:00:07]} 25. Qxd3 {[%emt 0:00:10]} cxd3 {[%emt 0:00:17] Die Stellung ist ausgeglichen.} 26. Rxe4 {[%emt 0:00:01]} Rxc3 {[%emt 0:00:00]} (26... d2 $5 27. Red4 $8 Rd8 $14) 27. Rad4 {[%emt 0:00:21]} g6 {[%emt 0:01:04]} 28. Re5 {[%emt 0:00:50]} Rb8 {[%emt 0:00:26]} 29. Red5 {[%emt 0:00:01]} Rb5 {[%emt 0:00:23] Gewichteter Fehlerwert: Weiß=0.08 (makellos) /Schwarz=0.12 (sehr präzise) .  Fehler:       	Weiß=1     	Schwarz=1     Ungenau:       	Weiß=1     	---        OK:         	Weiß=8     	Schwarz=4     Bester:       	Weiß=1     	Schwarz=1} 1/2-1/2

[Event "Grand Prix Romania 1st Stage 2024"]
[Site "Bucuresti"]
[Date "2024.03.24"]
[Round "6.9"]
[White "Deac, Bogdan-Daniel"]
[Black "Costachi, Mihnea"]
[Result "1-0"]
[ECO "C54"]
[WhiteElo "2690"]
[BlackElo "2470"]
[Annotator "TA"]
[PlyCount "133"]
[EventDate "2024.03.20"]
[EventType "swiss"]
[EventCountry "ROU"]
[SourceTitle "playchess.com"]
[Source "ChessBase"]
[SourceQuality "1"]
[TimeControl "900+5"]

{[%evp 45,133,322,316,223,198,0,3,7,10,-4,-8,-7,9,9,33,44,54,50,54,54,56,50,52,57,50,50,102,62,66,14,113,98,99,28,282,275,303,293,310,321,390,383,481,490,431,294,375,379,514,161,478,314,4622,29954,29958,29960,29967,29970,29967,29970,29972,29974,29968,29971,29982,29983,29983,29984,29985,29986,29986,29987,29987,29976,29986,29987,29987,29988,29990,29991,29991,29992,29992,29992,29992,29991,29991,29991,29991,29991]} 1. e4 {[%emt 0:00:03]} e5 {[%emt 0:00:01]} 2. Bc4 {[%emt 0:00:24]} Nf6 {[%emt 0:00:07]} 3. d3 {[%emt 0:00:02]} Bc5 {[%emt 0:00:29]} 4. Nf3 {[%emt 0:00:05]} d6 {[%emt 0:00:03]} 5. c3 {[%emt 0:00:07]} Nc6 {[%emt 0:00:09]} 6. Nbd2 {[%emt 0:00:37]} a6 {[%emt 0:00:17]} 7. h3 {[%emt 0:00:12]} Ba7 {[%emt 0:00:11]} 8. Bb3 {[%emt 0:00:21]} h6 {[%emt 0:00:12] C54: Italienische Partie (Hauptvariante).} 9. Qe2 {[%emt 0:00:17]} Be6 {[%emt 0:01:40]} 10. Nf1 {[%emt 0:00:08]} Qd7 {[%emt 0:00:24]} 11. Ba4 $146 {[%emt 0:01:15]} ({Predecessor:} 11. Bc2 d5 12. Ng3 O-O 13. O-O Rfe8 14. Nh4 dxe4 15. Nxe4 Nxe4 16. dxe4 Qe7 17. Nf5 {0-1 Duda,J (2739)-Tomashevsky,E (2702) Titled Tuesday intern op 6th Nov blitz 2018 (10)}) 11... b5 {[%emt 0:00:06]} 12. Bb3 {[%emt 0:00:05]} O-O {[%emt 0:00:37]} 13. g4 {[%emt 0:00:24]} Nh7 {[%emt 0:01:53]} 14. Ng3 {[%emt 0:00:31]} d5 {[%emt 0:00:55]} 15. Nf5 {[%emt 0:00:30]} Rad8 {[%emt 0:00:27]} 16. Bd2 {[%emt 0:03:14]} dxe4 {[%emt 0:00:47]} 17. dxe4 {[%emt 0:00:48]} Na5 {[%emt 0:03:02]} 18. Nxe5 {[%emt 0:02:09]} Qe8 {[%emt 0:00:26]} 19. Bxe6 {[%emt 0:00:09]} Qxe6 {[%emt 0:01:48]} 20. Bf4 {[%emt 0:00:27]} c5 {[%emt 0:00:32]} 21. Nf3 {[%emt 0:00:25]} Nc4 {[%emt 0:00:54]} 22. O-O {[%emt 0:00:16]} Nxb2 {[%emt 0:00:32]} 23. Qxb2 {[%emt 0:04:08]} Qxe4 {[%emt 0:00:01]} 24. c4 {[%emt 0:00:01]} f6 {[%emt 0:00:17]} 25. Bg3 $2 {[%emt 0:00:20]} (25. Qa3 $18 Qxf4 26. Ne7+ (26. Qxa6 Rf7 $11) 26... Kf7 27. Qxa6) 25... Qxf3 $11 {[%emt 0:00:03]} 26. cxb5 {[%emt 0:00:05]} axb5 {[%emt 0:00:34]} 27. Qxb5 {[%emt 0:00:07]} Ng5 {[%emt 0:00:16]} 28. Qb3+ {[%emt 0:00:07]} Qxb3 {[%emt 0:00:10]} (28... c4 {wäre vielleicht verwirrender.} 29. Qxc4+ Kh7 30. Qc7 Nxh3+ 31. Kh2 Qxg4 32. Qxg7+ Qxg7 33. Nxg7 Ng5) 29. axb3 {[%emt 0:00:13]} Bb8 {[%emt 0:00:01]} 30. Ne7+ {[%emt 0:00:00]} Kh7 {[%emt 0:00:04]} ({Natürlich nicht} 30... Kf7 31. Nc6 Bxg3 32. Nxd8+ Rxd8 33. fxg3 $16) 31. Nc6 $1 {[%emt 0:00:00]} Bxg3 {[%emt 0:00:15]} 32. Nxd8 {[%emt 0:00:00]} Rxd8 {[%emt 0:00:18]} 33. fxg3 {[%emt 0:00:01]} Rd2 {[%emt 0:00:11]} 34. Rf5 $1 {[%emt 0:00:10]} Nxh3+ {[%emt 0:00:03]} 35. Kf1 {[%emt 0:00:01]} Rb2 {[%emt 0:00:08]} (35... Rd3 $14) 36. Ra3 {[%emt 0:00:15]} Rc2 $1 {[%emt 0:00:02]} 37. Ke1 {[%emt 0:00:04]} (37. Ra7 $14) 37... Kg6 {[%emt 0:00:05]} (37... Ng5 $11) 38. Rf3 $1 $16 {[%emt 0:00:05]} Ng5 {[%emt 0:00:05]} 39. Re3 {[%emt 0:00:02]} (39. Kd1 $1 $16 {[%cal Rd1c2]} Nxf3 40. Kxc2) 39... h5 $2 {[%emt 0:00:05][%mdl 8192]} (39... c4 $1 $11 {und Schwarz steht sicher.}) 40. gxh5+ $18 {[%emt 0:00:05]} Kxh5 {[%emt 0:00:01] [#]} 41. Kd1 $1 {[%emt 0:00:01]} Rb2 {[%emt 0:00:07]} 42. Ra5 {[%emt 0:00:10]} Kg4 {[%emt 0:00:06]} 43. Rxc5 {[%emt 0:00:01]} f5 {[%emt 0:00:03]} 44. Kc1 {[%emt 0:00:11]} Ra2 {[%emt 0:00:05]} 45. Rc2 {[%emt 0:00:05]} Ra7 {[%emt 0:00:05] [#]} 46. b4 $1 {[%emt 0:00:04]} Ne4 {[%emt 0:00:06]} 47. Rc4 $2 {[%emt 0:00:06]} (47. b5 g5 48. b6 Ra1+ 49. Kb2) 47... Kh3 $2 {[%emt 0:00:08]} (47... Rb7 48. Rb3 Rb5) 48. b5 {[%emt 0:00:04]} Nxg3 $2 {[%emt 0:00:06]} (48... Rb7 49. Rb3 Nd6) 49. b6 $18 {[%emt 0:00:03]} Rb7 {[%emt 0:00:01]} 50. Rb3 {[%emt 0:00:03]} g5 {[%emt 0:00:06]} 51. Rc7 {[%emt 0:00:05]} Rb8 {[%emt 0:00:02]} 52. b7 {[%emt 0:00:04]} f4 {[%emt 0:00:01]} 53. Rc8 {[%emt 0:00:07]} Rxb7 {[%emt 0:00:06]} 54. Rxb7 {[%emt 0:00:01]} f3 {[%emt 0:00:01]} 55. Rf7 {[%emt 0:00:07]} g4 {[%emt 0:00:13]} 56. Kd2 {[%emt 0:00:09]} Nf1+ {[%emt 0:00:06]} 57. Ke1 {[%emt 0:00:08]} Kg2 {[%emt 0:00:01]} 58. Rc2+ {[%emt 0:00:02]} Kg1 {[%emt 0:00:01]} 59. Rc4 {[%emt 0:00:08]} Ne3 {[%emt 0:00:09]} 60. Re4 {[%emt 0:00:03]} Ng2+ {[%emt 0:00:11]} 61. Kd2 {[%emt 0:00:04]} f2 {[%emt 0:00:01]} 62. Ke2 $1 {[%emt 0:00:04]} ({Schwächer ist} 62. Rxg4 f1=Q 63. Rxf1+ Kxf1 $14) 62... g3 {[%emt 0:00:03]} 63. Rg4 {[%emt 0:00:08]} Kh2 {[%emt 0:00:09]} 64. Rf8 {[%emt 0:00:06]} Kh3 {[%emt 0:00:08]} 65. Rg7 {[%emt 0:00:06]} Kh2 {[%emt 0:00:05]} 66. Rf3 {[%emt 0:00:05]} Nh4 {[%emt 0:00:08]} 67. Rfxg3 {[%emt 0:00:04]} 1-0

[Event "Grand Prix Romania 1st Stage 2024"]
[Site "Bucuresti"]
[Date "2024.03.24"]
[Round "6.10"]
[White "Filip, Lucian-Ioan"]
[Black "Korobov, Anton"]
[Result "0-1"]
[ECO "E04"]
[WhiteElo "2359"]
[BlackElo "2662"]
[Annotator "TA"]
[PlyCount "72"]
[EventDate "2024.03.20"]
[EventType "swiss"]
[EventCountry "ROU"]
[SourceTitle "playchess.com"]
[Source "ChessBase"]
[SourceQuality "1"]
[TimeControl "900+5"]

{[%evp 13,72,14,17,17,0,8,16,0,0,-2,0,-8,0,-12,18,0,15,-8,0,0,0,-10,2,0,7,0,0,0,0,0,14,0,5,0,0,0,15,0,0,0,0,0,0,-249,-218,-405,-405,-381,-297,-526,-276,-267,-280,-262,-291,-266,-287,-742,-738,-2271,-2146]} 1. d4 {[%emt 0:00:01]} Nf6 {[%emt 0:00:01]} 2. c4 {[%emt 0:00:01]} e6 {[%emt 0:00:03]} 3. g3 {[%emt 0:00:01]} d5 {[%emt 0:00:02]} 4. Bg2 {[%emt 0:00:00]} dxc4 {[%emt 0:00:00]} 5. Nf3 {[%emt 0:00:00]} Nc6 {[%emt 0:00:04]} 6. Qa4 {[%emt 0:00:32]} Bb4+ {[%emt 0:00:06]} 7. Bd2 {[%emt 0:00:02]} Nd5 {[%emt 0:00:06]} 8. Qb5 {[%emt 0:05:18]} Bxd2+ {[%emt 0:01:42]} 9. Nbxd2 {[%emt 0:00:01]} c3 {[%emt 0:00:02]} 10. bxc3 {[%emt 0:00:02] Die Stellung ist ausgeglichen.} Nxc3 {[%emt 0:00:02]} 11. Qb3 {[%emt 0:00:47]} Nd5 {[%emt 0:00:07]} 12. O-O {[%emt 0:00:03]} O-O {[%emt 0:00:02]} 13. Rfc1 {[%emt 0:01:28]} a5 {[%emt 0:00:38][%cal Ba7a5,Ba5a4][%mdl 32]} 14. a3 {[%emt 0:00:28][%mdl 1024] Weiss hat Kompensation.} a4 {[%emt 0:01:10]} 15. Qb2 {[%emt 0:00:06]} Qe7 {[%emt 0:00:55]} 16. e3 {[%emt 0:00:23]} Rd8 {[%emt 0:00:13]} 17. Rc2 {[%emt 0:01:42]} Ra6 {[%emt 0:00:38][%cal Ba8a6,Ba6b6,Bb6b3,Bb3d3][%mdl 32]} 18. Rac1 {[%emt 0:00:21]} Rb6 {[%emt 0:01:30]} 19. Qa1 {[%emt 0:00:19]} Na5 {[%emt 0:00:15]} 20. Rc5 {[%emt 0:01:49]} Nb3 {[%emt 0:00:21]} 21. Nxb3 {[%emt 0:00:02]} Rxb3 {[%emt 0:01:25]} 22. Nd2 {[%emt 0:00:10][%cal Og2d5] [#] Droht Bxd5! und aus.} Rd3 {[%emt 0:00:02]} 23. Bxd5 {[%emt 0:01:41]} exd5 {[%emt 0:00:02]} 24. Rxc7 {[%emt 0:00:09]} Qe8 {[%emt 0:00:43]} (24... Qxa3 $2 {verliert.} 25. Rxc8 (25. Qxa3 Rxa3 26. Rxc8 Rf8 $18) 25... Rf8 26. R8c2 $18 (26. Qxa3 Rxa3 27. R8c2 g6 $18)) 25. Nf3 {[%emt 0:01:20]} f6 {[%emt 0:00:02] Verhindert Ne5} 26. R1c3 {[%emt 0:00:18]} (26. Ne1 $5 Rb3 $8 27. R1c3 $11) 26... Rxc3 {[%emt 0:00:43]} 27. Qxc3 {[%emt 0:00:01]} Bh3 {[%emt 0:00:02]} 28. Nd2 $2 {[%emt 0:00:07] [#]} (28. Rxb7 $2 Rc8 29. Qd2 (29. Rc7 Rb8 $17) 29... Qc6 $17) (28. Qb4 $11 {und Weiss steht sicher.}) 28... Qb5 $1 $19 {[%emt 0:00:23] ...Qe2 wäre nun fies.} 29. Rc5 $2 {[%emt 0:00:11]} (29. Qc1) 29... Qe2 {[%emt 0:00:18] Weiss ist schwach auf den weissen Feldern} 30. Qc1 {[%emt 0:00:03] Wehrt Qe1+ ab} h5 {[%emt 0:00:18] Zielt auf ...f5 ab.} 31. Rc2 $2 {[%emt 0:00:03]} (31. Rc7) 31... Re8 {[%emt 0:00:17] Droht stark ...f5.} 32. Rc3 {[%emt 0:00:01]} f5 {[%emt 0:00:35][%cal Of5f4] ...f4! ist eine echte Drohung.} 33. e4 {[%emt 0:00:01]} fxe4 {[%emt 0:00:10] ( -> ...e3)} 34. Re3 {[%emt 0:00:01]} Qb5 {[%emt 0:00:20] Und ...Rc8 würde nun gewinnen.} 35. f3 $2 {[%emt 0:00:22]} (35. Qb1 Qc6 36. Nf1) 35... Rc8 {[%emt 0:00:16]} 36. Qe1 {[%emt 0:00:02]} Qb2 {[%emt 0:00:08] Gewichteter Fehlerwert: Weiß=0.63/Schwarz=0.18 (sehr präzise) .  Verlustzug:     	Weiß=1     	---        Fehler:       	Weiß=3     	---        Ungenau:       	Weiß=1     	Schwarz=2     OK:         	Weiß=8     	Schwarz=11    Bester:       	Weiß=2     	Schwarz=3     Stark:        	---       	Schwarz=1} 0-1

[Event "Grand Prix Romania 1st Stage 2024"]
[Site "Bucuresti"]
[Date "2024.03.24"]
[Round "6.11"]
[White "Kuzubov, Yuriy"]
[Black "Toma, Radu-Cristian"]
[Result "1-0"]
[ECO "D27"]
[WhiteElo "2605"]
[BlackElo "2386"]
[Annotator "TA"]
[PlyCount "67"]
[EventDate "2024.03.20"]
[EventType "swiss"]
[EventCountry "ROU"]
[SourceTitle "playchess.com"]
[Source "ChessBase"]
[SourceQuality "1"]
[TimeControl "900+5"]

{[%evp 16,67,38,30,34,0,0,0,2,0,0,-18,-13,-14,0,0,0,0,20,6,8,9,20,-2,81,107,102,100,83,75,128,128,106,120,113,152,186,185,235,233,233,233,345,335,526,446,664,688,1575,580,1980,1963,2258,2190]} 1. d4 {[%emt 0:00:02]} d5 {[%emt 0:00:01]} 2. c4 {[%emt 0:00:02]} dxc4 {[%emt 0:00:02]} 3. Nf3 {[%emt 0:00:04]} Nf6 {[%emt 0:00:02]} 4. e3 {[%emt 0:00:02]} a6 {[%emt 0:00:02]} 5. Bxc4 {[%emt 0:00:03]} e6 {[%emt 0:00:02]} 6. O-O {[%emt 0:00:03]} Nbd7 {[%emt 0:00:02]} 7. a4 {[%emt 0:00:06]} c5 {[%emt 0:00:04]} 8. Nc3 {[%emt 0:00:02]} Qc7 {[%emt 0:01:13]} 9. Qe2 {[%emt 0:00:36]} Bd6 {[%emt 0:00:16]} 10. d5 {[%emt 0:00:34]} exd5 {[%emt 0:01:14]} 11. Bxd5 {[%emt 0:00:03]} O-O {[%emt 0:00:16] The position is equal.} 12. e4 {[%emt 0:00:21]} Ne5 {[%emt 0:02:19]} 13. h3 {[%emt 0:00:14]} Nxf3+ {[%emt 0:01:05]} 14. Qxf3 {[%emt 0:00:03]} Be5 {[%emt 0:00:07]} 15. Be3 {[%emt 0:00:38]} Be6 {[%emt 0:00:50]} 16. Rfd1 {[%emt 0:02:56][%cal Bf1d1,Bd1d2,Bd2c2,Bc2e2,Be2e3][%mdl 32]} Qb6 {[%emt 0:01:42]} 17. Rd2 {[%emt 0:00:55]} Rad8 {[%emt 0:01:01]} 18. a5 {[%emt 0:02:27]} Qc7 {[%emt 0:00:14]} 19. Qd1 {[%emt 0:00:15]} Bxc3 {[%emt 0:00:31]} (19... h6 $11 {remains equal.}) 20. bxc3 $16 {[%emt 0:00:04]} Bxd5 {[%emt 0:00:09]} 21. exd5 {[%emt 0:00:03]} Ne4 {[%emt 0:00:21]} 22. Rc2 {[%emt 0:00:09]} f5 {[%emt 0:01:36] [#]} (22... Rde8 $142) 23. f3 $1 {[%emt 0:00:18]} f4 {[%emt 0:00:28]} 24. fxe4 {[%emt 0:02:36]} fxe3 {[%emt 0:00:02] [#]} 25. Re2 $1 {[%emt 0:00:07]} Qe5 {[%emt 0:03:05]} 26. Rxe3 {[%emt 0:00:23]} Rf4 {[%emt 0:00:07]} (26... Rfe8 $142 27. Qb3 Qc7) 27. Qe2 $18 {[%emt 0:00:41]} Re8 {[%emt 0:00:08]} 28. Re1 {[%emt 0:00:28]} h5 {[%emt 0:00:03]} (28... Qd6 {was called for.} 29. Qd3 Re5) 29. Qc4 {[%emt 0:00:18]} Rc8 {[%emt 0:00:16]} (29... Rf7 $142 30. Qxc5 Kh7) 30. Rd1 {[%emt 0:00:35] White is clearly winning.} h4 {[%emt 0:00:08]} (30... Qd6 $142 31. Qe2 Qe5) 31. d6+ {[%emt 0:00:08]} Kh7 {[%emt 0:00:03]} 32. Qd5 {[%emt 0:00:35]} (32. Rd5 $142 Qf6 33. e5 (33. Rxc5 $2 {is the wrong capture.} Rxc5 34. e5 Rxe5 $19) (33. Rh5+ Kg6 $18) 33... Rxc4 34. exf6 gxf6 35. d7) 32... Qf6 {[%emt 0:00:10]} 33. e5 {[%emt 0:00:27]} Qf5 {[%emt 0:00:02]} 34. Qd3 {[%emt 0:00:06] Weighted Error Value: White=0.26 (precise) /Black=0.40.  Mistake:       	---       	Black=6      Inaccurate:     	White=1     	Black=1      OK:         	White=8     	Black=10     Best:        	White=1     	---        Strong:       	White=2     	---} ({Not} 34. e6 Rf1+ 35. Rxf1 Qxd5 $14) 1-0

[Event "Grand Prix Romania 1st Stage 2024"]
[Site "Bucuresti"]
[Date "2024.03.24"]
[Round "6.12"]
[White "Cosma, Ioan"]
[Black "Brunello, Sabino"]
[Result "0-1"]
[ECO "E08"]
[WhiteElo "2316"]
[BlackElo "2515"]
[Annotator "RC"]
[PlyCount "151"]
[EventDate "2024.03.20"]
[EventType "swiss"]
[EventCountry "ROU"]
[SourceTitle "playchess.com"]
[Source "ChessBase"]
[SourceQuality "1"]
[TimeControl "900+5"]

1. d4 {[%emt 0:00:06]} Nf6 {[%emt 0:00:01]} 2. Nf3 {[%emt 0:00:02]} e6 {[%emt 0:00:06]} 3. c4 {[%emt 0:00:12]} d5 {[%emt 0:00:03]} 4. g3 {[%emt 0:00:12]} Be7 {[%emt 0:00:14]} 5. Bg2 {[%emt 0:00:08]} O-O {[%emt 0:00:03]} 6. O-O {[%emt 0:00:08]} Nbd7 {[%emt 0:00:14]} 7. Qc2 {[%emt 0:00:11]} a5 {[%emt 0:00:19]} 8. Nbd2 {[%emt 0:00:42]} c5 {[%emt 0:00:04]} 9. Rd1 {[%emt 0:00:59]} b6 {[%emt 0:00:49]} 10. b3 {[%emt 0:00:49]} Ba6 {[%emt 0:00:09]} 11. e4 {[%emt 0:00:29]} Rc8 {[%emt 0:00:02]} 12. exd5 {[%emt 0:00:29]} exd5 {[%emt 0:00:04]} 13. Bb2 {[%emt 0:00:37]} Re8 {[%emt 0:00:19]} 14. Rac1 {[%emt 0:00:38]} dxc4 {[%emt 0:01:48]} 15. Nxc4 {[%emt 0:00:15]} cxd4 {[%emt 0:00:03]} 16. Nxd4 {[%emt 0:00:06]} Bxc4 {[%emt 0:00:20]} 17. bxc4 {[%emt 0:00:18]} Qc7 {[%emt 0:00:06]} 18. Nb5 {[%emt 0:02:26]} Qb8 {[%emt 0:00:02]} 19. Bh3 {[%emt 0:00:10]} Rcd8 {[%emt 0:00:04]} 20. Re1 {[%emt 0:00:22]} Bc5 {[%emt 0:00:45]} 21. Bxd7 {[%emt 0:00:48]} Nxd7 {[%emt 0:00:18]} 22. Qf5 {[%emt 0:00:23]} Nf8 {[%emt 0:00:38]} 23. Rxe8 {[%emt 0:01:26]} Rxe8 {[%emt 0:00:01]} 24. Qg4 {[%emt 0:00:09]} Ng6 {[%emt 0:00:29]} 25. Qf3 {[%emt 0:00:41]} Ne5 {[%emt 0:00:43]} 26. Bxe5 {[%emt 0:00:07]} Qxe5 {[%emt 0:00:04]} 27. Rc2 {[%emt 0:00:34]} g6 {[%emt 0:00:51]} 28. Kg2 {[%emt 0:00:16]} Re6 {[%emt 0:00:43]} 29. Qd5 {[%emt 0:00:45]} Kg7 {[%emt 0:00:10]} 30. Qxe5+ {[%emt 0:00:13]} Rxe5 {[%emt 0:00:01]} 31. Nc3 {[%emt 0:00:17]} Re6 {[%emt 0:00:51]} 32. h4 {[%emt 0:00:12]} h5 {[%emt 0:00:10]} 33. Kf3 {[%emt 0:00:08]} Rf6+ {[%emt 0:00:00]} 34. Kg2 {[%emt 0:00:04]} Bd4 {[%emt 0:00:08]} 35. Nb5 {[%emt 0:00:08]} Bc5 {[%emt 0:00:03]} 36. Nc3 {[%emt 0:00:01]} Kf8 {[%emt 0:00:09]} 37. Ne4 {[%emt 0:00:05]} Rc6 {[%emt 0:00:04]} 38. Kf3 {[%emt 0:00:19]} Bd4 {[%emt 0:00:24]} 39. a4 {[%emt 0:00:09]} Ke7 {[%emt 0:00:05]} 40. Ke2 {[%emt 0:00:08]} Rc7 {[%emt 0:00:33]} 41. Kd3 {[%emt 0:00:09]} Rd7 {[%emt 0:00:01]} 42. Ke2 {[%emt 0:00:06]} Ke6 {[%emt 0:00:24]} 43. Ng5+ {[%emt 0:00:05]} Ke7 {[%emt 0:00:12]} 44. Rd2 {[%emt 0:00:06]} Rd6 {[%emt 0:00:12]} 45. Ne4 {[%emt 0:00:04]} Rd7 {[%emt 0:00:16]} 46. Ng5 {[%emt 0:00:00]} f6 {[%emt 0:00:07]} 47. Nf3 {[%emt 0:00:21]} Bc5 {[%emt 0:00:06]} 48. Rxd7+ {[%emt 0:00:05]} Kxd7 {[%emt 0:00:01]} 49. Ne1 {[%emt 0:00:01]} Ke6 {[%emt 0:00:10]} 50. Nd3 {[%emt 0:00:06]} Bd4 {[%emt 0:00:19]} 51. f4 {[%emt 0:00:13]} Kf5 {[%emt 0:00:30]} 52. Kf3 {[%emt 0:00:01]} g5 {[%emt 0:00:05]} 53. fxg5 {[%emt 0:00:03]} fxg5 {[%emt 0:00:01]} 54. hxg5 {[%emt 0:00:02]} Kxg5 {[%emt 0:00:00]} 55. Nf4 {[%emt 0:00:04]} Bc5 {[%emt 0:00:15]} 56. Nd3 {[%emt 0:00:06]} Bd6 {[%emt 0:00:09]} 57. Nf2 {[%emt 0:00:10]} Kf5 {[%emt 0:00:02]} 58. Nd3 {[%emt 0:00:01]} Bc5 {[%emt 0:01:02]} 59. Nf4 {[%emt 0:00:10]} Kg5 {[%emt 0:00:02]} 60. Ne6+ {[%emt 0:00:06]} Kf5 {[%emt 0:00:03]} 61. Nf4 {[%emt 0:00:01]} Kg5 {[%emt 0:00:02]} 62. Ne6+ {[%emt 0:00:02]} Kf5 {[%emt 0:00:22]} 63. Nf4 {[%emt 0:00:02]} Ke5 {[%emt 0:00:06]} 64. Nxh5 {[%emt 0:00:23]} Kd4 {[%emt 0:00:00]} 65. g4 {[%emt 0:00:04]} Be7 {[%emt 0:00:06]} 66. Kf4 {[%emt 0:00:31]} Kxc4 {[%emt 0:04:02]} 67. g5 {[%emt 0:00:00]} Bxg5+ {[%emt 0:00:00]} 68. Kxg5 {[%emt 0:00:01]} Kb4 {[%emt 0:00:00]} 69. Nf4 {[%emt 0:00:23]} Kxa4 {[%emt 0:00:00]} 70. Nd5 {[%emt 0:00:02]} b5 {[%emt 0:00:00]} 71. Kf4 {[%emt 0:00:02]} Kb3 {[%emt 0:00:00]} 72. Ke4 {[%emt 0:00:45]} a4 {[%emt 0:00:00]} 73. Kd3 {[%emt 0:00:32]} a3 {[%emt 0:00:00]} 74. Ne3 {[%emt 0:00:08]} a2 {[%emt 0:00:00]} 75. Nc2 {[%emt 0:00:03]} Kb2 {[%emt 0:00:00]} 76. Kd4 {[%emt 0:00:15]} 0-1

[Event "Grand Prix Romania 1st Stage 2024"]
[Site "Bucuresti"]
[Date "2024.03.24"]
[Round "6.13"]
[White "Fridman, Daniel"]
[Black "Antal, Hunor-Zoltan"]
[Result "0-1"]
[ECO "D11"]
[WhiteElo "2590"]
[BlackElo "2272"]
[Annotator "RC"]
[PlyCount "106"]
[EventDate "2024.03.20"]
[EventType "swiss"]
[EventCountry "ROU"]
[SourceTitle "playchess.com"]
[Source "ChessBase"]
[SourceQuality "1"]
[TimeControl "900+5"]

1. d4 {[%emt 0:00:02]} d5 {[%emt 0:00:07]} 2. Nf3 {[%emt 0:00:01]} Nf6 {[%emt 0:00:02]} 3. c4 {[%emt 0:00:02]} c6 {[%emt 0:00:05]} 4. g3 {[%emt 0:00:02]} Bg4 {[%emt 0:00:21]} 5. Ne5 {[%emt 0:00:02]} Bf5 {[%emt 0:00:05]} 6. cxd5 {[%emt 0:00:06]} cxd5 {[%emt 0:00:58]} 7. Nc3 {[%emt 0:00:03]} e6 {[%emt 0:00:18]} 8. Qb3 {[%emt 0:00:23]} Qb6 {[%emt 0:00:50]} 9. e3 {[%emt 0:02:23]} Bb4 {[%emt 0:02:52]} 10. Bd2 {[%emt 0:00:01]} O-O {[%emt 0:01:03]} 11. f3 {[%emt 0:00:04]} Nfd7 {[%emt 0:02:03]} 12. Nd3 {[%emt 0:01:05]} Nc6 {[%emt 0:00:21]} 13. Nxb4 {[%emt 0:01:49]} Nxb4 {[%emt 0:02:24]} 14. e4 {[%emt 0:00:04]} dxe4 {[%emt 0:00:43]} 15. fxe4 {[%emt 0:00:02]} Qxd4 {[%emt 0:00:08]} 16. Qc4 {[%emt 0:02:39]} Qxc4 {[%emt 0:00:36]} 17. Bxc4 {[%emt 0:00:03]} Ne5 {[%emt 0:00:12]} 18. Be2 {[%emt 0:00:22]} Bg6 {[%emt 0:00:53]} 19. O-O {[%emt 0:00:35]} Nc2 {[%emt 0:00:27]} 20. Rab1 {[%emt 0:01:03]} Nd4 {[%emt 0:00:09]} 21. Bd1 {[%emt 0:00:02]} Nc4 {[%emt 0:00:11]} 22. Bc1 {[%emt 0:00:01]} Rfd8 {[%emt 0:00:13]} 23. Bb3 {[%emt 0:02:48]} Nxb3 {[%emt 0:00:23]} 24. axb3 {[%emt 0:00:02]} Nd2 {[%emt 0:00:02]} 25. Bxd2 {[%emt 0:00:02]} Rxd2 {[%emt 0:00:01]} 26. Rf2 {[%emt 0:00:18]} Rad8 {[%emt 0:00:03]} 27. Rbf1 {[%emt 0:00:05]} f6 {[%emt 0:00:19]} 28. b4 {[%emt 0:00:06]} Rxf2 {[%emt 0:00:04]} 29. Rxf2 {[%emt 0:00:03]} Rd4 {[%emt 0:00:01]} 30. Re2 {[%emt 0:01:00]} Rxb4 {[%emt 0:00:15]} 31. Kf2 {[%emt 0:00:01]} e5 {[%emt 0:00:05]} 32. Ke3 {[%emt 0:00:03]} Rd4 {[%emt 0:00:07]} 33. Re1 {[%emt 0:00:02]} b5 {[%emt 0:00:07]} 34. Kf3 {[%emt 0:00:08]} b4 {[%emt 0:00:03]} 35. Nb5 {[%emt 0:00:16]} Rd3+ {[%emt 0:00:07]} 36. Kf2 {[%emt 0:00:23]} a6 {[%emt 0:00:12]} 37. Nc7 {[%emt 0:00:12]} Rd2+ {[%emt 0:00:16]} 38. Ke3 {[%emt 0:00:01]} Rxb2 {[%emt 0:00:02]} 39. Nxa6 {[%emt 0:00:02]} b3 {[%emt 0:00:06]} 40. Nc5 {[%emt 0:00:02]} Rc2 {[%emt 0:00:05]} 41. Nd3 {[%emt 0:00:07]} Rxh2 {[%emt 0:00:25]} 42. Nf2 {[%emt 0:00:11]} Bf7 {[%emt 0:00:09]} 43. Rc1 {[%emt 0:00:02]} h5 {[%emt 0:00:01]} 44. Rc8+ {[%emt 0:00:04]} Kh7 {[%emt 0:00:01]} 45. Rc7 {[%emt 0:00:03]} Kg6 {[%emt 0:00:03]} 46. Rb7 {[%emt 0:00:05]} Rg2 {[%emt 0:00:11]} 47. Kf3 {[%emt 0:00:05]} Rg1 {[%emt 0:00:03]} 48. Ke2 {[%emt 0:00:08]} Bc4+ {[%emt 0:00:03]} 49. Kf3 {[%emt 0:00:02]} Rc1 {[%emt 0:00:05]} 50. Rb4 {[%emt 0:00:16]} Rc3+ {[%emt 0:00:02]} 51. Kg2 {[%emt 0:00:01]} Rc2 {[%emt 0:00:03]} 52. Kf3 {[%emt 0:00:06]} b2 {[%emt 0:00:05]} 53. Nd1 {[%emt 0:00:12]} Be2+ {[%emt 0:00:01]} 0-1